Cogmind - Beta 17 @@@ ROGUE MODE // 2026.07.23 @ 02:34:00 Player: Trekki Result: Destroyed by GP-Z3E(R) with Subdweller Machine Gun Performance ------------- Evolutions (0) 0 Regions Visited (2) 400 Robots Destroyed (25) 125 Value Destroyed (449) 449 Prototype IDs (0) 0 Alien Tech Used (0) 0 Bonus (0) 0 TOTAL SCORE: 974 Bonus ------- None Cogmind --------- Core Integrity 0/250 Matter 241/300 Energy 123/125 System Corruption 0% Temperature Cool (8) Movement Walking (190) Ox1 Location -10/Subcaves Parts ------- > --- POWER (1) -------- Light Ion Engine > --- PROPULSION (2) --- Aluminum Leg Aluminum Leg > --- UTILITY (2) ------ Large Storage Unit Signal Interpreter > --- WEAPON (2) ------- Particle Gun Beam Cannon > --- INVENTORY (15) --- Ion Engine Aluminum Leg Aluminum Leg Subdweller Monowheel Improved Heat Sink High-capacity Matter Pod (153) Visual Processing Unit Improved Terrain Scanner ECM Suite Medium Laser Grenade Launcher Grenade Launcher Mining Laser Peak State ------------ > --- POWER ------------ Ion Engine > --- PROPULSION ------- Wheel Wheel > --- UTILITY ---------- Huge Storage Unit Weight Redist. System > --- WEAPON ----------- Assault Rifle Light Assault Rifle > --- INVENTORY -------- Light Ion Engine Light Ion Engine Aluminum Leg Aluminum Leg Aluminum Leg Aluminum Leg Heat Sink Improved Heat Sink Small Storage Unit Medium Matter Pod Medium Matter Pod Visual Processing Unit Visual Processing Unit Improved Terrain Scanner ECM Suite Medium Laser Light Cannon Grenade Launcher Grenade Launcher Grenade Launcher Plasma Cutter Plasma Cutter [Rating: 11] Favorites ----------- Power Ion Engine Engine Ion Engine Propulsion Aluminum Leg Leg Aluminum Leg Wheel Wheel Utility Large Storage Unit Device Seismic Detector Storage Large Storage Unit Processor Signal Interpreter Weapon Assault Rifle Energy Gun Medium Laser Energy Cannon Beam Cannon Ballistic Gun Assault Rifle Ballistic Cannon Light Cannon Special Weapon Mining Laser Build | -11 -10 -10 ------- Run | Yrd Mat Sub Slots Evolved . | . . . Power . | . . . Propulsion . | . . . Utility . | . . . Weapon . | . . . Parts Attached 26 | 9 15 2 Power 2 | 1 1 . Engine 2 | 1 1 . Core . | . . . Reactor . | . . . Propulsion 6 | 2 4 . Treads . | . . . Leg 3 | 2 1 . Wheel 3 | . 3 . Hover . | . . . Flight . | . . . Utility 9 | 3 6 . Device 4 | 2 2 . Storage 4 | 1 3 . Processor 1 | . 1 . Hackware . | . . . Protection . | . . . Artifact . | . . . Weapon 9 | 3 4 2 Energy Gun 2 | 1 . 1 Energy Cannon 1 | . . 1 Ballistic Gun 2 | 2 . . Ballistic Cannon 1 | . 1 . Launcher . | . . . Special Weapon 3 | . 3 . Impact Weapon . | . . . Slashing Weapon . | . . . Piercing Weapon . | . . . Special Melee Weapon . | . . . Unidentified Prototypes . | . . . Parts Lost 8 | . 5 3 Power 1 | . 1 . Propulsion 3 | . 2 1 Utility 1 | . 1 . Weapon 3 | . 1 2 Highest Loss Streak 3 | . 2 3 To Critical Strikes . | . . . Average Backups 12 | 6 13 14 Power 1 | . 1 1 Propulsion 2 | 3 2 2 Utility 4 | . 4 5 Weapon 3 | 1 4 5 Tool/Special . | . . . Unused Backups 22 | 4 9 9 Power 2 | . 1 1 Propulsion 6 | 3 1 2 Utility 9 | 1 4 4 Weapon 4 | . 2 2 Tool/Special 1 | . 1 . Average Slot Usage (%) 99 | . 99 97 Engine 14 | . 14 14 Leg 12 | . 12 28 Wheel 15 | . 15 . Device 6 | . 6 . Storage 14 | . 14 14 Processor 7 | . 7 14 Energy Gun 1 | . 1 2 Ballistic Gun 21 | . 21 8 Ballistic Cannon 3 | . 3 5 Special Weapon 1 | . 1 . Peak Build Rating 11 | 10 11 9 Average Rating 8 | 7 8 8 On Entrance 5 | . 7 9 Avg Prop Armor Cover (%) 9 | . 9 . Naked Turns . | . . . Heaviest Build 90 | 14 90 28 Greatest Support 26 | 20 26 20 Greatest Overweight (x) 8 | . 8 1 Average Overweight (x) 1 | . 1 1 Largest Inventory Capacity 25 | 8 25 15 Average Capacity 15 | 7 16 15 Most Carried 24 | 8 24 15 Average Carried 12 | 6 13 13 Final Capacity 15 | 8 15 15 Final Carried 15 | 7 15 13 Class Distribution -------------------- 100% | Mutant Dominant Class ---------------- Mutant | -10/Materials Mutant | -10/Subcaves Resources | -11 -10 -10 ----------- Run | Yrd Mat Sub Matter Collected 1010 | 400 519 91 Remotely . | . . . Salvage Created 682 | 224 367 91 Parts 57 | 19 29 9 Haulers Intercepted . | . . . Recyclers Shooed 2 | 1 1 . Parts Field Recycled . | . . . Retrieved Matter . | . . . Parts Self-Destructed . | . . . Prevented . | . . . Parts Restored . | . . . Kills | -11 -10 -10 ------- Run | Yrd Mat Sub Combat Hostiles Destroyed 11 | . 9 2 Guns 7 | . 7 . Cannons 4 | . 2 2 Classes Destroyed 8 | 3 4 1 Worker 4 | 2 2 . Tunneler 5 | 5 . . Recycler 1 | 1 . . Operator 1 | . 1 . Watcher 3 | . 3 . Swarmer 3 | . 3 . Grunt 6 | . 6 . Subdweller 2 | . . 2 Best Kill Streak 4 | 3 4 2 Combat Bots Only 3 | . 3 2 Max Kills in Single Turn 1 | 1 1 1 Gunslinging . | . . . Exploded . | . . . Melee . | . . . Uniques/NPCs Destroyed . | . . . Combat | -11 -10 -10 -------- Run | Yrd Mat Sub Hostile Shots Fired 105 | . 94 11 Missed 26 | . 23 3 Hits 79 | . 71 8 Projectile 79 | . 71 8 Critical Strikes 4 | . 4 . Damage Taken 1054 | . 883 171 Core 264 | . 216 48 Absorbed by Shields . | . . . Core Remaining (%) 100 | 100 . . Volleys Fired 90 | 18 65 7 Largest 2 | 2 2 2 Hottest 125 | 40 120 125 Shots Fired 169 | 36 119 14 Gun 133 | 36 90 7 Cannon 27 | . 20 7 Launcher . | . . . Special 9 | . 9 . Kinetic 141 | 36 100 5 Thermal 28 | . 19 9 Explosive . | . . . Electromagnetic . | . . . Robot Hit Streak 12 | 12 8 10 Robot Miss Streak 7 | 3 7 2 Penetration Max . | . . . Secondary Targets 2 | . 2 . Max Gunslinging Chain 1 | . 1 . Shots Hit Robots 92 | 21 59 12 Core Hits 42 | 10 26 6 Critical Kills . | . . . Critical Parts Destroyed . | . . . Critical Strikes 1 | . 1 . Blast 1 | . 1 . Melee Attacks . | . . . Impact . | . . . Slashing . | . . . Piercing . | . . . Sneak Attacks . | . . . Combat Hostiles . | . . . Follow-up Attacks . | . . . Damage Inflicted 1124 | 231 708 185 Guns 869 | 231 561 77 Cannons 255 | . 147 108 Explosions . | . . . Melee . | . . . Ramming . | . . . Kinetic 919 | 231 633 55 Thermal 205 | . 75 130 Explosive . | . . . Electromagnetic . | . . . Impact . | . . . Slashing . | . . . Piercing . | . . . Highest Corruption . | . . . Average Corruption . | . . . Corruption Purged . | . . . Corruption Blocked . | . . . Overload Shots . | . . . Overflow Damage . | . . . Projectiles . | . . . Explosions . | . . . Melee . | . . . Knockbacks 4 | . 4 . Impact . | . . . Kinetic 4 | . 4 . Secondary . | . . . Self-Inflicted Damage . | . . . Shots . | . . . Rammed . | . . . Targets Rammed . | . . . Kicked . | . . . Crushed . | . . . Highest Temperature 300 | . 300 8 Average Temperature 73 | . 76 4 Received Heat Transfer 561 | . 546 15 Effects 1 | . 1 . Energy Bleed 1 | . 1 . Siege Activations . | . . . Martial Activations . | . . . Shielding Activations . | . . . Robots Disrupted . | . . . Combat Hostiles . | . . . Robots Corrupted . | . . . Combat Hostiles . | . . . Parts Fried . | . . . Impact Corruptions . | . . . Robots Melted . | . . . Combat Hostiles . | . . . Parts Melted . | . . . Heat Transferred 518 | . 222 296 Parts Sabotaged . | . . . Parts Stolen . | . . . Parts Stripped . | . . . Power Chain Reactions . | . . . Alert | -11 -10 -10 ------- Run | Yrd Mat Sub Maximum Alert Level . | . . . Low Security (%) 100 | 100 100 . Level 1 . | . . . Level 2 . | . . . Level 3 . | . . . Level 4 . | . . . Level 5 . | . . . High Security . | . . . Max Security . | . . . Peak Influence 77 | 10 77 . Initial . | . . . Average 12 | 2 13 . Influence Increases 323 | 40 283 . Destroy 0b10 Robot/C 180 | . 180 . Destroy 0b10 Robot/NC 70 | 40 30 . Destroy Leader 46 | . 46 . Successful Hack 5 | . 5 . Destroy Structure 7 | . 7 . Partial Spotted 15 | . 15 . Influence Decreases 323 | 40 283 . Time Decay 307 | 40 267 . Lost Part 16 | . 16 . Squads Dispatched 2 | . 2 . Investigation . | . . . Extermination . | . . . Reinforcement 2 | . 2 . Assault . | . . . Garrison . | . . . Intercept . | . . . Searches Triggered . | . . . Construction Impeded . | . . . Haulers Reinforced . | . . . Active Scanning Responses . | . . . Cargo Convoy Interrupts . | . . . Stealth | -11 -10 -10 --------- Run | Yrd Mat Sub Distress Signals . | . . . Communications Jammed . | . . . Distress Signals . | . . . Times Spotted 21 | . 17 4 Peak Tracking Total 3 | . 3 2 Tactical Retreats . | . . . Traps | -11 -10 -10 ------- Run | Yrd Mat Sub Traps Triggered 1 | . 1 . Indirectly . | . . . Trap Hack Attempts . | . . . Triggered . | . . . Disarmed . | . . . Reprogrammed . | . . . Reused . | . . . Traps Extracted . | . . . Installed . | . . . Triggered . | . . . Machines | -11 -10 -10 ---------- Run | Yrd Mat Sub Machines Disabled . | . . . Max in Single Turn . | . . . Machines Repaired . | . . . Machines Dismantled . | . . . Machines Sabotaged . | . . . Overloaded Fab Kills . | . . . Hacking | -11 -10 -10 --------- Run | Yrd Mat Sub Machines Accessed 7 | . 7 . Terminals 5 | . 5 . Fabricators . | . . . Repair Stations 1 | . 1 . Recycling Units 1 | . 1 . Scanalyzers . | . . . Garrison Access . | . . . Total Hacks 21 | . 21 . Successful 12 | . 12 . Failed 9 | . 9 . Catastrophic 1 | . 1 . Database Lockouts . | . . . Manual 9 | . 9 . Terminals 16 | . 16 . Fabricators . | . . . Repair Stations 3 | . 3 . Recycling Units 2 | . 2 . Scanalyzers . | . . . Garrison Access . | . . . Terminal Hacks 10 | . 10 . Record 3 | . 3 . Emergency Access Points 1 | . 1 . Alert Level 1 | . 1 . Locate Traps 1 | . 1 . Maintenance Status 1 | . 1 . Hauler Manifests 1 | . 1 . Zone Layout 2 | . 2 . Fabricator Hacks . | . . . Repair Station Hacks 1 | . 1 . Scan Component 1 | . 1 . Recycling Unit Hacks 1 | . 1 . Report Inventory 1 | . 1 . Scanalyzer . | . . . Garrison Access Hacks . | . . . Unauthorized Hacks . | . . . Terminals . | . . . Fabricators . | . . . Repair Stations . | . . . Recycling Units . | . . . Scanalyzers . | . . . Garrison Access . | . . . Data Cores Recovered . | . . . Used . | . . . Hacking Detections 7 | . 7 . Full Trace Events . | . . . Feedback Events . | . . . Feedback Blocked . | . . . Robot Schematics Acquired . | . . . Robots Built . | . . . Authchips . | . . . Time . | . . . Total Robot Build Rating . | . . . Part Schematics Acquired . | . . . Parts Built . | . . . Authchips . | . . . Time . | . . . Total Part Build Rating . | . . . Part Studies Acquired . | . . . Parts Repaired . | . . . Time . | . . . Parts Recycled . | . . . Recycled Matter . | . . . Retrieved Matter . | . . . Retrieved Components . | . . . Parts Scanalyzed . | . . . Part Schematics Acquired . | . . . Parts Damaged . | . . . Bothacking | -11 -10 -10 ------------ Run | Yrd Mat Sub Used RIF Installer . | . . . Robots Hacked . | . . . Non-combat . | . . . Combat . | . . . Robot Hacks Applied . | . . . Relay Couplers Released . | . . . Fabnet Peak Effective % . | . . . Robots Rewired . | . . . Allies Hacked . | . . . Hacks Repelled . | . . . Allies | -11 -10 -10 -------- Run | Yrd Mat Sub Total Allies . | . . . Largest Group . | . . . Highest-Rated Group . | . . . Highest-Rated Ally . | . . . Total Orders . | . . . Ally Attacks . | . . . Total Damage . | . . . Kills . | . . . Allies Corrupted . | . . . Allies Melted . | . . . Intel | -11 -10 -10 ------- Run | Yrd Mat Sub Active Infowar (turns) 735 | 152 583 . Terrain 132 | 132 . . Seismic 603 | 20 583 . Robot Analysis Total . | . . . Derelict Logs Recovered . | . . . Drone Launches . | . . . Drone Recoveries . | . . . Exploration | -11 -10 -10 ------------- Run | Yrd Mat Sub Turns Passed 2033 | 222 1769 42 Spaces Moved 1247 | 127 1112 8 Core 11 | 11 . . Treads . | . . . Legs 473 | 116 349 8 Wheels 763 | . 763 . Hover . | . . . Flight . | . . . Fastest Speed 50 | 50 95 190 Average Speed 125 | 113 125 190 Slowest Speed 260 | 120 260 190 Overloaded Moves . | . . . Propulsion Burnouts . | . . . Robots Hopped . | . . . Potential Cave-ins . | . . . Cave-ins Triggered . | . . . Exploration Rate (%) 34 | 5 96 2 Regions Visited 2 Branch Regions 1 Pre-discovered Areas . | . . . Known Exits Taken 1 | . 1 . Unknown Exits Taken 1 | 1 . . Scrap Searched . | . . . Spaces Dug 5 | . 5 . Terrain Destroyed 6 | . 6 . Melee . | . . . Projectile 6 | . 6 . AOE . | . . . Terrain Rammed . | . . . Walls Destroyed . | . . . Machines Disabled . | . . . Actions | -11 -10 -10 --------- Run | Yrd Mat Sub Total 1551 | 172 1358 21 Wait 101 | . 99 2 Move 1245 | 126 1111 8 Hop . | . . . Pick Up 50 | 13 36 1 Fast Attach 10 | 5 5 . Attach 13 | 4 6 3 Detach 4 | 2 2 . Swap 12 | . 12 . Drop 23 | 4 19 . Fire 90 | 18 65 7 Melee . | . . . Ram . | . . . Kick . | . . . Crush . | . . . Escape Stasis . | . . . Rewire 3 | . 3 . Trap . | . . . Miscellaneous . | . . . Route ------- -11/Scrapyard -10/Materials (discovered 5 exits: *Mat x3 / *Min / *Sub) -10/Subcaves History --------- Turn | Location | Event 6 | -11/Scrapyard | Discovered new exit (range 13) 223 | -11/Scrapyard | Entered Materials 300 | -10/Materials | Build established: Mutant 352 | -10/Materials | Discovered new exit (range 14) 352 | -10/Materials | Discovered new exit (range 19) 1133 | -10/Materials | Discovered new exit (range 4) 1136 | -10/Materials | Identified exit to Materials 1169 | -10/Materials | Identified exit to Mines 1224 | -10/Materials | Discovered new exit (range 7) 1229 | -10/Materials | Identified exit to Subcaves 1380 | -10/Materials | Discovered exit to Materials (range 8) 1560 | -10/Materials | Core integrity fell below 50% 1589 | -10/Materials | Core integrity fell below 20% 1992 | -10/Materials | Entered Subcaves 2034 | -10/Subcaves | Destroyed by GP-Z3E(R) with Subdweller Machine Gun Last Messages --------------- 01770_ Acquired Mining Laser. 01798_ O-16 Technician destroyed. 01802_ U-05 Engineer builds a Wall. 01832_ Connecting with Terminal... 01914_ U-05 Engineer builds a Wall. 01990_ Connecting with D.C.S.S. Altar Unit... LOCATION=SUBCAVES AMBIENT_HEAT=-10 GOAL=ESCAPE 01998_ 9W-YMC(R) destroyed. 02001_ Lgt. Cannon destroyed. 02004_ Subatomizers dissect the Sub. Monowheel. 02007_ Aluminum Leg destroyed. 02009_ Q9-YDX(R) destroyed. 02012_ Acquired 91 matter. 02016_ Subatomizers dissect the Sub. Monowheel. 02017_ Assault Rifle destroyed. 02018_ Acquired Sub. Monowheel. 02031_ Subatomizers dissect the Sub. Monowheel. 02033_ GP-Z3E(R) affixes Scrap Shield Fragment to Scrap Shield. Map ----- +----------------------------------------------------+ | ?????????????????????????????????????????????????? | | ?????????????????????????????????????????????????? | | ?????????????????????????????????????????????????? | | ?????????????????????????????????????????????????? | | ?????????????????????????????????????????????????? | | ?????????????????????????????????????????????????? | | ?????????????????????????????????????????????????? | | ?????????????????????????????????????????????????? | | ?????????????????????????????????????????????????? | | ?????????????????????????????????????????????????? | | ?????????????????????? ???????????????????????? | | ?????????????????????? ??????????????????????? | | ?????????????????????? ??????????????????????? | | ?????????????????????? ??????????????????????? | | ?????????????????????? ??????????????????????? | | ??????????????????????# ???????????????????????? | | ??????????????????????# ???????????????????????? | | ?????????????????????## ???????????????????????? | | ?????????????????????? #???????????????????????? | | ?????????????????#??## ##??????????????????????? | | ?????????????????# ## # ###????????????????????? | | ?????????????????? #????????????????????? | | ???????????????????? #????????????????????? | | ????????????????????## !&* #????????????????????? | | ???????????????????## %&R* #????????????????????? | | ???????????????????# !R@&#?????????????????????? | | ???????????????????## [!####?????????????????????? | | ????????????????????## #???????????????????????? | | ?????????????????????# #???????????????????????? | | ????????????????????? #???????????????????????? | | ???????????????????? ???????????????????????? | | ??????????????????? % ??????????????????????? | | ??????????????????# # ??????????????????????? | | ??????????????????## ### ?????????????????????? | | ???????????????????# ??? ????????????????????? | | ??????????????????? %??? # ????????????????????? | | ???????????????????# ???# ???????????????????? | | ???????????????????####???? ? ???????????????????? | | ??????????????????????????? ????????????????????? | | ?????????????????????????????????????????????????? | | ?????????????????????????????????????????????????? | | ?????????????????????????????????????????????????? | | ?????????????????????????????????????????????????? | | ?????????????????????????????????????????????????? | | ?????????????????????????????????????????????????? | | ?????????????????????????????????????????????????? | | ?????????????????????????????????????????????????? | | ?????????????????????????????????????????????????? | | ?????????????????????????????????????????????????? | | ?????????????????????????????????????????????????? | +----------------------------------------------------+ Best States ------------- Heat Dissipation 25 Energy Generation 10 Energy Capacity 250 Matter Stores 300 Matter Capacity 400 Sight Range 16 Terrain Scan Range 16 Terrain Scan Density 10 Additional Mass Support 6 Evasion (%) 55 Item Schematics ----------------- None Robot Schematics ------------------ None Fabricated ------------ Nothing Repaired ---------- Nothing Studied --------- None Alien Tech Used ----------------- None Achievements -------------- DATA ERROR: Steam Global Achievement% Organ Harvest There's More Where That Came From Challenges ------------ None Game ------ Seed MyomerCarbideShockpuncher Manual? 0 Play Time 00:36:51 Cumulative 36.6 hours Start 2026.07.23 @ 01:55:53 End 2026.07.23 @ 02:34:00 Sessions 1 Manual Loads 0 Difficulty Rogue Special Mode None Game No. 18 Rogue 18 Adventurer 0 Explorer 0 Win Type - Total 0 Types 0/0/0/0/0/0/0/0/0/0 Lore% 14 Gallery% 29 Achievement% 14 Wizard Run 0 Options --------- Layout 0 ASCII 0 Keyboard 0 Movement Mouse Keybinds 0 Fullscreen 2 Font 24/Smallcaps Map View 76x50 Zoom Use 0% Tactical HUD 1 Map Filters NONE Filters NONE Steam X RUN: 2b670e27-c7f1-4cf8-b909-05a3667cb1be